Cogmind - Beta 13 @@@ ROGUE MODE // 2024.04.21 @ 14:20:19 Player: Olafz Result: Destroyed by O7-JJ9(R) with Subdweller Laser Performance ------------- Evolutions (0) 0 Regions Visited (3) 600 Robots Destroyed (22) 110 Value Destroyed (634) 634 Prototype IDs (1) 20 Alien Tech Used (0) 0 Bonus (0) 0 TOTAL SCORE: 1364 Bonus ------- None Cogmind --------- Core Integrity 0/250 Matter 45/300 Energy 117/125 System Corruption 0% Temperature Cool (6) Movement Walking (190) Ox1 Location -10/Subcaves Parts ------- > --- POWER (1+1) ------ Light Ion Engine > --- PROPULSION (2+1) - Aluminum Leg Aluminum Leg > --- UTILITY (2+1) ---- Large Storage Unit (+) Rainbow Chip > --- WEAPON (2+1) ----- Subdweller Laser Barrage Gun > --- INVENTORY (15) --- Ion Engine Light Ion Engine Light Nuclear Core Aluminum Leg Aluminum Leg Aluminum Leg Disposable Heat Sink Medium Storage Unit Light Assault Rifle Subdweller Machine Gun Barrage Gun Mace Peak State ------------ > --- POWER ------------ Makeshift Power Source > --- PROPULSION ------- Aluminum Leg Makeshift Leg > --- UTILITY ---------- Large Storage Unit Rainbow Chip > --- WEAPON ----------- Particle Gun Barrage Gun > --- INVENTORY -------- Ion Engine Light Ion Engine Light Ion Engine Light Nuclear Core Aluminum Leg Aluminum Leg Aluminum Leg Aluminum Leg Disposable Heat Sink Medium Storage Unit Subdweller Laser Light Assault Rifle Subdweller Machine Gun Barrage Gun Mace [Rating: 30] Favorites ----------- Power Light Nuclear Core Engine Makeshift Power Source Power Core Light Nuclear Core Propulsion Aluminum Leg Leg Aluminum Leg Utility Large Storage Unit Device Heat Sink Storage Large Storage Unit Processor Signal Interpreter Weapon Assault Rifle Energy Gun Particle Gun Ballistic Gun Assault Rifle Impact Weapon Mace Build | -11 -10 -10 -10 ------- Run | Yrd Mat Min Sub Slots Evolved . | . . . . Power . | . . . . Propulsion . | . . . . Utility . | . . . . Weapon . | . . . . Parts Attached 25 | . 7 . 18 Power 5 | . 1 . 4 Engine 4 | . . . 4 Core 1 | . 1 . . Reactor . | . . . . Propulsion 6 | . 3 . 3 Treads . | . . . . Leg 6 | . 3 . 3 Wheel . | . . . . Hover . | . . . . Flight . | . . . . Utility 6 | . 2 . 4 Device 1 | . . . 1 Storage 3 | . 1 . 2 Processor 2 | . 1 . 1 Hackware . | . . . . Protection . | . . . . Artifact . | . . . . Weapon 8 | . 1 . 7 Energy Gun 3 | . . . 3 Energy Cannon . | . . . . Ballistic Gun 3 | . 1 . 2 Ballistic Cannon . | . . . . Launcher . | . . . . Special Weapon . | . . . . Impact Weapon 2 | . . . 2 Slashing Weapon . | . . . . Piercing Weapon . | . . . . Special Melee Weapon . | . . . . Unidentified Prototypes 1 | . . . 1 Parts Lost 4 | . . . 4 Power 1 | . . . 1 Propulsion 2 | . . . 2 Utility . | . . . . Weapon 1 | . . . 1 Highest Loss Streak 2 | . . . 2 To Critical Strikes . | . . . . Average Slot Usage (%) 92 | . 98 100 85 Engine 6 | . 3 . 11 Core 6 | . 10 14 . Leg 25 | . 28 28 22 Device 4 | . . . 8 Storage 13 | . 14 14 12 Processor 8 | . 12 14 3 Energy Gun 6 | . . . 12 Ballistic Gun 17 | . 28 28 8 Impact Weapon 2 | . . . 4 Naked Turns . | . . . . Heaviest Build 33 | 11 29 29 33 Greatest Support 30 | 20 20 20 30 Greatest Overweight (x) 2 | . 1 1 2 Average Overweight (x) . | . . 1 . Largest Inventory Capacity 15 | . 15 15 15 Average Capacity 14 | . 12 15 14 Most Carried 15 | . 13 13 15 Average Carried 12 | . 8 13 14 Final Capacity 15 | 8 15 15 15 Final Carried 13 | 6 13 13 12 Class Distribution -------------------- 66% | Mutant 33% | Scavenger-Mutant Dominant Class ---------------- Mutant | -10/Materials Mutant | -10/Mines Scavenger-Mutant | -10/Subcaves Resources | -11 -10 -10 -10 ----------- Run | Yrd Mat Min Sub Matter Collected 588 | 194 232 66 96 Remotely . | . . . . Salvage Created 826 | . 502 28 296 Parts 57 | . 33 6 18 Haulers Intercepted . | . . . . Recyclers Shooed . | . . . . Parts Field Recycled . | . . . . Retrieved Matter . | . . . . Parts Self-Destructed 11 | . . . 11 Prevented . | . . . . Kills | -11 -10 -10 -10 ------- Run | Yrd Mat Min Sub Combat Hostiles Destroyed 18 | . 9 2 7 Guns 18 | . 9 2 7 Classes Destroyed 7 | . 5 1 1 Worker 1 | . 1 . . Builder 1 | . 1 . . Tunneler 1 | . 1 . . Recycler 1 | . 1 . . Swarmer 3 | . . 2 1 Grunt 9 | . 9 . . Subdweller 6 | . . . 6 Best Kill Streak 5 | . 5 2 2 Combat Bots Only 3 | . 3 2 2 Max Kills in Single Turn 1 | . 1 1 1 Gunslinging . | . . . . Exploded . | . . . . Melee . | . . . . Uniques/NPCs Destroyed . | . . . . Combat | -11 -10 -10 -10 -------- Run | Yrd Mat Min Sub Hostile Shots Fired 106 | . 49 13 44 Missed 33 | . 17 4 12 Damage Taken 1081 | . 378 73 630 Core 271 | . 52 18 201 Absorbed by Shields . | . . . . Core Remaining (%) 100 | 100 . . . Volleys Fired 95 | . 34 5 56 Largest 2 | . 2 2 2 Hottest 125 | . 40 40 125 Shots Fired 180 | . 68 10 102 Gun 180 | . 68 10 102 Cannon . | . . . . Launcher . | . . . . Special . | . . . . Kinetic 126 | . 68 10 48 Thermal 54 | . . . 54 Explosive . | . . . . Electromagnetic . | . . . . Robot Hit Streak 8 | . 8 3 8 Robot Miss Streak 6 | . 2 6 2 Penetration Max . | . . . . Secondary Targets 4 | . 2 1 1 Max Gunslinging Chain 1 | . 1 1 1 Shots Hit Robots 83 | . 44 4 35 Core Hits 43 | . 27 2 14 Critical Kills 1 | . . . 1 Critical Parts Destroyed . | . . . . Critical Strikes 2 | . . . 2 Destroy 2 | . . . 2 Melee Attacks 10 | . . . 10 Impact 10 | . . . 10 Slashing . | . . . . Piercing . | . . . . Sneak Attacks . | . . . . Combat Hostiles . | . . . . Follow-up Attacks . | . . . . Damage Inflicted 1221 | . 580 47 594 Guns 1122 | . 580 47 495 Cannons . | . . . . Explosions . | . . . . Melee 99 | . . . 99 Ramming . | . . . . Kinetic 881 | . 580 47 254 Thermal 241 | . . . 241 Explosive . | . . . . Electromagnetic . | . . . . Impact 99 | . . . 99 Slashing . | . . . . Piercing . | . . . . Highest Corruption . | . . . . Average Corruption . | . . . . Corruption Purged . | . . . . Corruption Blocked . | . . . . Overload Shots . | . . . . Overflow Damage . | . . . . Projectiles . | . . . . Explosions . | . . . . Melee . | . . . . Knockbacks 1 | . . . 1 Impact 1 | . . . 1 Kinetic . | . . . . Secondary . | . . . . Self-Inflicted Damage . | . . . . Shots . | . . . . Rammed . | . . . . Targets Rammed . | . . . . Kicked . | . . . . Crushed . | . . . . Highest Temperature 8 | . 7 . 8 Average Temperature 1 | . 1 . 2 Received Heat Transfer 312 | . 213 . 99 Siege Activations . | . . . . Robots Corrupted . | . . . . Combat Hostiles . | . . . . Parts Fried . | . . . . Impact Corruptions . | . . . . Robots Melted . | . . . . Combat Hostiles . | . . . . Parts Melted 1 | . . . 1 Heat Transferred 470 | . . . 470 Parts Sabotaged . | . . . . Parts Stolen . | . . . . Parts Stripped . | . . . . Power Chain Reactions . | . . . . Alert | -11 -10 -10 -10 ------- Run | Yrd Mat Min Sub Peak Influence 211 | . 211 80 . Initial 40 | . . 40 . Average 57 | . 98 21 . Maximum Alert Level 1 | . 1 . . Low Security (%) 97 | . 95 100 . Level 1 2 | . 4 . . Level 2 . | . . . . Level 3 . | . . . . Level 4 . | . . . . Level 5 . | . . . . High Security . | . . . . Max Security . | . . . . Squads Dispatched 2 | . 2 . . Investigation 1 | . 1 . . Extermination . | . . . . Reinforcement 1 | . 1 . . Assault . | . . . . Garrison . | . . . . Intercept . | . . . . Searches Triggered . | . . . . Construction Impeded . | . . . . Haulers Reinforced . | . . . . Active Scanning Responses . | . . . . Cargo Convoy Interrupts . | . . . . Stealth | -11 -10 -10 -10 --------- Run | Yrd Mat Min Sub Distress Signals 1 | . 1 . . Communications Jammed . | . . . . Distress Signals . | . . . . Times Spotted 33 | . 17 3 13 Peak Tracking Total 7 | . 3 2 7 Tactical Retreats 1 | . . . 1 Traps | -11 -10 -10 -10 ------- Run | Yrd Mat Min Sub Traps Triggered . | . . . . Indirectly . | . . . . Trap Hack Attempts . | . . . . Triggered . | . . . . Disarmed . | . . . . Reprogrammed . | . . . . Reused . | . . . . Traps Extracted . | . . . . Installed . | . . . . Triggered . | . . . . Machines | -11 -10 -10 -10 ---------- Run | Yrd Mat Min Sub Machines Disabled . | . . . . Max in Single Turn . | . . . . Machines Repaired . | . . . . Machines Dismantled . | . . . . Machines Sabotaged . | . . . . Overloaded Fab Kills . | . . . . Hacking | -11 -10 -10 -10 --------- Run | Yrd Mat Min Sub Machines Accessed 2 | . 2 . . Terminals 2 | . 2 . . Fabricators . | . . . . Repair Stations . | . . . . Recycling Units . | . . . . Scanalyzers . | . . . . Garrison Access . | . . . . Total Hacks 6 | . 6 . . Successful 2 | . 2 . . Failed 4 | . 4 . . Catastrophic 1 | . 1 . . Database Lockouts . | . . . . Manual 6 | . 6 . . Terminals 6 | . 6 . . Fabricators . | . . . . Repair Stations . | . . . . Recycling Units . | . . . . Scanalyzers . | . . . . Garrison Access . | . . . . Terminal Hacks 1 | . 1 . . Terminal Index 1 | . 1 . . Fabricator Hacks . | . . . . Repair Station Hacks . | . . . . Recycling Unit Hacks . | . . . . Scanalyzer . | . . . . Garrison Access Hacks . | . . . . Unauthorized Hacks 1 | . 1 . . Terminals 1 | . 1 . . Botnet 1 | . 1 . . Fabricators . | . . . . Repair Stations . | . . . . Recycling Units . | . . . . Scanalyzers . | . . . . Garrison Access . | . . . . Data Cores Recovered . | . . . . Used . | . . . . Hacking Detections 2 | . 2 . . Full Trace Events 1 | . 1 . . Feedback Events . | . . . . Feedback Blocked . | . . . . Robot Schematics Acquired . | . . . . Robots Built . | . . . . Authchips . | . . . . Time . | . . . . Total Robot Build Rating . | . . . . Part Schematics Acquired . | . . . . Parts Built . | . . . . Authchips . | . . . . Time . | . . . . Total Part Build Rating . | . . . . Parts Repaired . | . . . . Time . | . . . . Parts Recycled . | . . . . Recycled Matter . | . . . . Retrieved Matter . | . . . . Retrieved Components . | . . . . Parts Scanalyzed . | . . . . Part Schematics Acquired . | . . . . Parts Damaged . | . . . . Bothacking | -11 -10 -10 -10 ------------ Run | Yrd Mat Min Sub Used RIF Installer . | . . . . Robots Hacked . | . . . . Non-combat . | . . . . Combat . | . . . . Robot Hacks Applied . | . . . . Relay Couplers Released . | . . . . Fabnet Peak Effective % . | . . . . Robots Rewired . | . . . . Allies Hacked . | . . . . Hacks Repelled . | . . . . Allies | -11 -10 -10 -10 -------- Run | Yrd Mat Min Sub Total Allies . | . . . . Largest Group . | . . . . Highest-Rated Group . | . . . . Highest-Rated Ally . | . . . . Total Orders . | . . . . Ally Attacks . | . . . . Total Damage . | . . . . Kills . | . . . . Allies Corrupted . | . . . . Allies Melted . | . . . . Intel | -11 -10 -10 -10 ------- Run | Yrd Mat Min Sub Robot Analysis Total . | . . . . Derelict Logs Recovered 3 | . . 2 1 Drone Launches . | . . . . Drone Recoveries . | . . . . Exploration | -11 -10 -10 -10 ------------- Run | Yrd Mat Min Sub Turns Passed 3061 | . 702 817 1542 Spaces Moved 1617 | 1 354 423 839 Core . | . . . . Treads . | . . . . Legs 1617 | 1 354 423 839 Wheels . | . . . . Hover . | . . . . Flight . | . . . . Fastest Speed 120 | 120 120 190 130 Average Speed 165 | 120 161 190 155 Slowest Speed 260 | 120 190 190 260 Overloaded Moves . | . . . . Propulsion Burnouts . | . . . . Robots Hopped . | . . . . Cave-ins Triggered . | . . . . Exploration Rate (%) 45 | 2 66 70 42 Regions Visited 3 Branch Regions 2 Pre-discovered Areas 2 | . . 1 1 Known Exits Taken 2 | . 1 1 . Unknown Exits Taken 1 | 1 . . . Scrap Searched 1 | . . 1 . Spaces Dug . | . . . . Terrain Destroyed . | . . . . Melee . | . . . . Projectile . | . . . . AOE . | . . . . Terrain Rammed . | . . . . Walls Destroyed . | . . . . Machines Disabled . | . . . . Actions | -11 -10 -10 -10 --------- Run | Yrd Mat Min Sub Total 1808 | . 418 427 963 Wait 27 | . 11 . 16 Move 1614 | . 353 422 839 Hop . | . . . . Pick Up 17 | . 7 . 10 Fast Attach 7 | . 1 . 6 Attach 7 | . . . 7 Detach 6 | . . . 6 Swap 11 | . 6 . 5 Drop 14 | . 6 . 8 Fire 95 | . 34 5 56 Melee 10 | . . . 10 Ram . | . . . . Kick . | . . . . Crush . | . . . . Escape Stasis . | . . . . Rewire . | . . . . Trap . | . . . . Miscellaneous . | . . . . Route ------- -11/Scrapyard -10/Materials (discovered 3 exits: *Mat x2 / *Min) -10/Mines (discovered 2 exits: *Mat / *Sub) -10/Subcaves History --------- Turn | Location | Event 1 | -11/Scrapyard | Discovered new exit (range 0) 1 | -11/Scrapyard | Entered Materials 257 | -10/Materials | Discovered new exit (range 7) 266 | -10/Materials | Identified exit to Materials 302 | -10/Materials | Build established: Mutant 580 | -10/Materials | Discovered exit to Materials (range 16) 690 | -10/Materials | Discovered new exit (range 8) 702 | -10/Materials | Identified exit to Mines 703 | -10/Materials | Entered Mines 718 | -10/Mines | Learned location of Storage (-7) 795 | -10/Mines | Found a hidden stash of uninstalled traps 888 | -10/Mines | Learned Materials non-interactive machine intel 1038 | -10/Mines | Discovered exit to Materials (range 10) 1442 | -10/Mines | Learned location of 1 exit from Materials 1505 | -10/Mines | Discovered new exit (range 9) 1518 | -10/Mines | Identified exit to Subcaves 1520 | -10/Mines | Entered Subcaves 1573 | -10/Subcaves | Core integrity fell below 50% 1599 | -10/Subcaves | Shifting Twisted Machinery released Piercing Trap 1609 | -10/Subcaves | A swath of the cavern ceiling suddenly collapsed 1742 | -10/Subcaves | Shifting Twisted Machinery released Barrage Gun 1861 | -10/Subcaves | Build established: Scavenger-Mutant 1871 | -10/Subcaves | Core integrity fell below 20% 2048 | -10/Subcaves | Shifting Twisted Machinery released Barrage Gun 2144 | -10/Subcaves | Shifting Twisted Machinery released Flamer 2499 | -10/Subcaves | A Subdweller sparked back to life 2499 | -10/Subcaves | A Subdweller sparked back to life 2499 | -10/Subcaves | A Subdweller sparked back to life 2536 | -10/Subcaves | Found Prototype Processor 2536 | -10/Subcaves | Identified Rainbow Chip 2537 | -10/Subcaves | Attached Rainbow Chip, gained temporary slots: Power, Propulsion, Utility, Weapon 3062 | -10/Subcaves | Destroyed by O7-JJ9(R) with Subdweller Laser Last Messages --------------- Dropped Heat Sink. Acquired Prototype Processor. Identified Rainbow Chip. Lgt. Assault Rifle fries itself beyond repair. Core temporarily expanded with Power slot. Core temporarily expanded with Propulsion slot. Core temporarily expanded with Utility slot. Core temporarily expanded with Weapon slot. Lgt. Assault Rifle fries itself beyond repair. Acquired Aluminum Leg. Acquired Barrage Gun. Acquired Aluminum Leg. Acquired Ion Engine. Acquired Disposable Heat Sink. Dropped Particle Gun. Mak. Power Source destroyed. Mak. Leg destroyed. ZO-4T7(R) suffers critical hit (Destroy). ZO-4T7(R) destroyed. IH-YAH(u) deconstructs Twisted Machinery. Map ----- +----------------------------------------------------+ | ?????????????????????????????????????????????????? | | ?????????????????????????????????????????????????? | | ?????????????????????????????????????????????????? | | ?????????????????????????????????????????????????? | | ?????????????????????????????????????????????????? | | ?????????????????????????????????????????????????? | | ???????????####???????????? #?##????????????????? | | ???????????# ##??????????#"""" ????????????????? | | ???????????# #???????### ????????????????? | | ??????????## [#???????? "" #?????????????????? | | ?????????## #???????? """"""#?????????????????? | | ????????## ##??????? #?????????????????? | | ####?#### ##?###### #?????????????????? | | # ### ### " ## ###???????????????? | | " """ "##??????????????? | | ##### ##?????????????? | | ### # ##???## #?????????????? | | #?#!######?????### ####????????????????? | | ###%!#???????????#### "##???????????????????? | | ## = #??????????????## " ##????????????????????? | | #??????????????## ""##?????????????????????? | | #??????????????# #"#??????????????????????? | | ##??????????????# ##??????????????????????? | | #####???????????????# #???????????????????????? | | #???????????????????# ##### #????????? | | #???????????????????# @ R #????????????? | | #???????????????????#### ###"""?????????????? | | #??????????????????????## """"#??????????????????? | | ????????????????????????# "#?????????????????? | | ????????????????????????# """" ????????????????? | | ???????????????????????? ????????????????? | | ???????????????????????? ####????????????????? | | ????????????????????????### #???????????????????? | | ??????????????????????????? ##???????????????????? | | ??????????????????????????? #????????????????????? | | ??????????????????????????? #????????????????????? | | ???????????????????????????""????????????????????? | | ???????????????????????????? ????????????????????? | | ?????????????????????????????????????????????????? | | ?????????????????????????????????????????????????? | | ?????????????????????????????????????????????????? | | ?????????????????????????????????????????????????? | | ?????????????????????????????????????????????????? | | ?????????????????????????????????????????????????? | | ?????????????????????????????????????????????????? | | ?????????????????????????????????????????????????? | | ?????????????????????????????????????????????????? | | ?????????????????????????????????????????????????? | | ?????????????????????????????????????????????????? | | ?????????????????????????????????????????????????? | +----------------------------------------------------+ Best States ------------- Heat Dissipation 35 Energy Generation 15 Energy Capacity 200 Matter Stores 294 Matter Capacity 300 Sight Range 16 Terrain Scan Density 10 Evasion (%) 55 Item Schematics ----------------- None Robot Schematics ------------------ None Fabricated ------------ Nothing Alien Tech Used ----------------- None Achievements -------------- None Challenges ------------ None Game ------ Seed HeavyTransmissionLeg Manual? 0 Play Time 00:16:36 Cumulative 75.2 hours Start 2024.04.21 @ 14:04:25 End 2024.04.21 @ 14:20:19 Sessions 1 Manual Loads 0 Difficulty Rogue Special Mode None Game No. 160 Rogue 158 Adventurer 2 Explorer 0 Win Type - Total 1 Types 1/0/0/0/0/0/0/0/0 Lore% 47 Gallery% 47 Achievement% 37 Wizard Run 0 Options --------- Layout 0 ASCII 0 Keyboard 1 Movement Numpad Keybinds 1 Fullscreen 2 Font 18/SmallcapsGlow Map View 76x50 Zoom Use 0% Tactical HUD 1 Map Filters NONE Filters NONE Steam 1 RUN: ae59c345-3759-42a9-b228-c98b02742f5c